fUST/lending_fUST_20250628
["ID","MTS","AMOUNT","RATE_DAILY","PERIOD"]
[368185844,1751052665680,-319.74,0.00021369,2]
[368185845,1751052665690,-460.0,0.00021369,2]
[368185846,1751052665699,-151.0,0.00021369,2]
[368185847,1751052665708,-460.0,0.00021369,2]
[368185848,1751052665717,-151.0,0.00021369,2]
[368185849,1751052665727,-460.0,0.00021369,2]
[368185850,1751052665737,-460.0,0.00021369,2]
[368185851,1751052665746,-581.464007,0.00021369,2]
[368185852,1751052665756,-460.0,0.00021369,2]
[368185853,1751052665765,-460.0,0.00021369,2]
[368185854,1751052665774,-581.464007,0.00021369,2]
[368185855,1751052665783,-462.42,0.00021369,2]
[368185856,1751052665792,-982.78,0.00021369,2]
[368185857,1751052665801,-460.0,0.00021369,2]
[368185858,1751052665811,-460.0,0.00021369,2]
[368185859,1751052665820,-460.0,0.00021369,2]
[368185860,1751052665829,-845.73,0.00021369,2]
[368185861,1751052665837,-460.0,0.00021369,2]
[368185862,1751052665846,-460.0,0.00021369,2]
[368185863,1751052665856,-578.18,0.00021369,2]
[368185864,1751052665865,-460.0,0.00021369,2]
[368185865,1751052665875,-460.0,0.00021369,2]
[368185866,1751052665884,-460.0,0.00021369,2]
[368185867,1751052665894,-460.0,0.00021369,2]
[368185868,1751052665904,-460.0,0.00021369,2]
[368185869,1751052665913,-460.0,0.00021369,2]
[368185870,1751052665923,-540.1,0.00021369,2]
[368185871,1751052665933,-957.57,0.00021369,2]
[368185872,1751052665946,-3376.72,0.00021369,2]
[368185873,1751052665956,-615.39,0.00021369,2]
[368185874,1751052665966,-1140.07,0.00021369,2]
[368185875,1751052665976,-3869.59,0.00021369,2]
[368185876,1751052665986,-2384.21,0.00021369,2]
[368185877,1751052665996,-637.12,0.00021369,2]
[368185878,1751052666006,-460.0,0.00021369,2]
[368185879,1751052666017,-5918.62,0.00021369,2]
[368185880,1751052666027,-770.71,0.00021369,2]
[368185881,1751052666036,-460.0,0.00021369,2]
[368185882,1751052666047,-460.0,0.00021369,2]
[368185883,1751052666057,-2145.65,0.00021369,2]
[368185884,1751052666067,-460.0,0.00021369,2]
[368185885,1751052666077,-1645.29,0.00021369,2]
[368185886,1751052666087,-445.18,0.00021369,2]
[368185887,1751052666096,-2364.11,0.00021369,2]
[368185888,1751052666106,-460.0,0.00021369,2]
[368185889,1751052666117,-460.0,0.00021369,2]
[368185890,1751052666127,-460.0,0.00021369,2]
[368185891,1751052666136,-594.37,0.00021369,2]
[368185892,1751052666146,-460.0,0.00021369,2]
[368185893,1751052666155,-924.4,0.00021369,2]
[368185894,1751052666164,-627.61,0.00021369,2]
[368185895,1751052666174,-2181.9,0.00021369,2]
[368185896,1751052666184,-460.0,0.00021369,2]
[368185897,1751052666194,-853.71,0.00021369,2]
[368185898,1751052666203,-2297.35,0.00021369,2]
[368185899,1751052666213,-861.77,0.00021369,2]
[368185900,1751052666222,-460.0,0.00021369,2]
[368185901,1751052666232,-460.0,0.00021369,2]
[368185902,1751052666241,-1670.06,0.00021369,2]
[368185903,1751052666252,-460.0,0.00021369,2]
[368185904,1751052666263,-460.0,0.00021369,2]
[368185905,1751052666273,-460.0,0.00021369,2]
[368185906,1751052666283,-460.0,0.00021369,2]
[368185907,1751052666292,-460.0,0.00021369,2]
[368185908,1751052666302,-1454.24,0.00021369,2]
[368185909,1751052666312,-2486.78,0.00021369,2]
[368185910,1751052666321,-390.62502656,0.00021369,2]
[368185911,1751052666330,-460.0,0.00021369,2]
[368185912,1751052666340,-584.46,0.00021369,2]
[368185913,1751052666349,-460.0,0.00021369,2]
[368185914,1751052666360,-460.0,0.00021369,2]
[368185915,1751052666370,-523.83,0.00021369,2]
[368185916,1751052666379,-723.03,0.00021369,2]
[368185917,1751052666388,-1169.97,0.00021369,2]
[368185918,1751052666397,-1127.03,0.00021369,2]
[368185919,1751052666406,-719.13,0.00021369,2]
[368185920,1751052666415,-735.82,0.00021369,2]
[368185921,1751052666425,-859.39,0.00021369,2]
[368185922,1751052666434,-617.53,0.00021369,2]
[368185923,1751052666443,-460.0,0.00021369,2]
[368185924,1751052666454,-460.0,0.00021369,2]
[368185925,1751052666463,-825.22,0.00021369,2]
[368185926,1751052666472,-460.0,0.00021369,2]
[368185927,1751052666482,-916.36,0.00021369,2]
[368185928,1751052666491,-2447.11,0.00021369,2]
[368185929,1751052666501,-460.0,0.00021369,2]
[368185930,1751052666510,-460.0,0.00021369,2]
[368185931,1751052666519,-2742.82,0.00021369,2]
[368185932,1751052666529,-4031.83,0.00021369,2]
[368185933,1751052666539,-460.0,0.00021369,2]
[368185934,1751052666548,-460.0,0.00021369,2]
[368185935,1751052666558,-460.0,0.00021369,2]
[368185936,1751052666567,-460.0,0.00021369,2]
[368185937,1751052666576,-469.16716367,0.00021369,2]
[368185938,1751052666584,-460.0,0.00021369,2]
[368185939,1751052666593,-460.0,0.00021369,2]
[368185940,1751052666603,-768.54,0.00021369,2]
[368185941,1751052666613,-460.0,0.00021369,2]
[368185942,1751052666621,-7682.97,0.00021369,2]
[368185943,1751052666631,-460.0,0.00021369,2]
[368185944,1751052666640,-907.91,0.00021369,2]
[368185945,1751052666649,-460.0,0.00021369,2]
[368185946,1751052666659,-975.77,0.00021369,2]
[368185947,1751052666668,-532.67,0.00021369,2]
[368185948,1751052666678,-460.0,0.00021369,2]
[368185949,1751052666688,-8376.54,0.00021369,2]
[368185950,1751052666697,-966.56,0.00021369,2]
[368185951,1751052666706,-1863.89,0.00021369,2]
[368185952,1751052666716,-662.11,0.00021369,2]
[368185953,1751052666725,-4593.24,0.00021369,2]
[368185954,1751052666735,-262.92928088,0.00021369,2]
[368185955,1751052666745,-3839.3,0.00021369,2]
[368185956,1751052666754,-1521.91,0.00021369,2]
[368185957,1751052666765,-460.0,0.00021369,2]
[368185958,1751052666774,-460.0,0.00021369,2]
[368185959,1751052666784,-796.1,0.00021369,2]
[368185960,1751052666793,-897.01,0.00021369,2]
[368185961,1751052666803,-361.5271153,0.00021369,2]
[368185962,1751052666812,-526.08,0.00021369,2]
[368185963,1751052666821,-1000.0,0.00021371,2]
[368185964,1751052666831,-500.0,0.00021371,2]
[368185965,1751052666841,-567.61125249,0.00021371,2]
[368185966,1751052666850,-168.0,0.00021395,2]
[368185967,1751052666859,-1051.457275,0.0002145,4]
[368185968,1751052666869,-1000.0,0.000215,2]
[368185969,1751052666878,-500.0,0.00021539,2]
[368185970,1751052666888,-500.0,0.00021539,2]
[368185971,1751052666897,-500.0,0.00021574,2]
[368185972,1751052666906,-5984.32231357,0.0002159,5]
[368185973,1751052666915,-159.2394861,0.00021616,2]
[368185974,1751052666924,-159.2394861,0.00021616,2]
[368185975,1751052666934,-159.2394861,0.00021616,2]
[368185976,1751052666948,-159.0575121,0.00021616,2]
[368185977,1751052666958,-460.0,0.00021643,2]
[368185978,1751052666967,-181.868175,0.00021643,2]
[368185979,1751052666977,-181.868177,0.00021643,2]
[368185980,1751052666986,-289.69560575,0.00021643,2]
[368185981,1751052666995,-460.0,0.00021643,2]
[368185982,1751052667005,-460.0,0.00021643,2]
[368185983,1751052667016,-460.0,0.00021643,2]
[368185984,1751052667025,-460.0,0.00021643,2]
[368185985,1751052667035,-460.0,0.00021643,2]
[368185986,1751052667044,-151.0,0.00021643,2]
[368185987,1751052667053,-151.0,0.00021643,2]
[368185988,1751052667063,-460.0,0.00021643,2]
[368185989,1751052667072,-460.0,0.00021643,2]
[368185990,1751052667081,-860.73,0.00021643,2]
[368185991,1751052667090,-784.18,0.00021643,2]
[368185992,1751052667100,-460.0,0.00021643,2]
[368185993,1751052667109,-1042.4,0.00021643,2]
[368185994,1751052667119,-151.0,0.00021643,2]
[368185995,1751052667128,-460.0,0.00021643,2]
[368185996,1751052667138,-151.0,0.00021643,2]
[368185997,1751052667147,-460.0,0.00021643,2]
[368185998,1751052667156,-460.0,0.00021643,2]
[368185999,1751052667166,-460.0,0.00021643,2]
[368186000,1751052667175,-269.68184967,0.00021643,2]
[368186001,1751052667185,-460.0,0.00021643,2]
[368186002,1751052667195,-460.0,0.00021643,2]
[368186003,1751052667204,-460.0,0.00021643,2]
[368186004,1751052667214,-209.62016079,0.00021643,2]
[368186005,1751052667223,-460.0,0.00021643,2]
[368186006,1751052667233,-460.0,0.00021643,2]
[368186007,1751052667242,-596.41,0.00021643,2]
[368186008,1751052667252,-460.0,0.00021643,2]
[368186009,1751052667261,-460.0,0.00021643,2]
[368186010,1751052667271,-538.39,0.00021643,2]
[368186011,1751052667281,-460.0,0.00021643,2]
[368186012,1751052667291,-460.0,0.00021643,2]
[368186013,1751052667301,-460.0,0.00021643,2]
[368186014,1751052667310,-460.0,0.00021643,2]
[368186015,1751052667319,-460.0,0.00021643,2]
[368186016,1751052667329,-488.4538692,0.00021643,2]
[368186017,1751052667338,-460.0,0.00021643,2]
[368186018,1751052667348,-460.0,0.00021643,2]
[368186019,1751052667357,-462.42,0.00021643,2]
[368186020,1751052667478,-982.78,0.00021643,2]
[368186021,1751052667488,-460.0,0.00021643,2]
[368186022,1751052667498,-460.0,0.00021643,2]
[368186023,1751052667507,-845.73,0.00021643,2]
[368186024,1751052667516,-417.68,0.00021643,2]
[368186025,1751052667525,-460.0,0.00021643,2]
[368186026,1751052667535,-578.18,0.00021643,2]
[368186027,1751052667546,-460.0,0.00021643,2]
[368186028,1751052667555,-460.0,0.00021643,2]
[368186029,1751052667565,-151.6,0.00021643,4]
[368186030,1751052667574,-460.0,0.00021643,2]
[368186031,1751052667583,-460.0,0.00021643,2]
[368186032,1751052667592,-460.0,0.00021643,2]
[368186033,1751052667603,-170.23,0.00021643,2]
[368186034,1751052667614,-540.1,0.00021643,2]
[368186035,1751052667624,-957.57,0.00021643,2]
[368186036,1751052667633,-3376.72,0.00021643,2]
[368186037,1751052667643,-615.39,0.00021643,2]
[368186038,1751052667653,-1140.07,0.00021643,2]
[368186039,1751052667662,-3869.59,0.00021643,2]
[368186040,1751052667672,-2384.21,0.00021643,2]
[368186041,1751052667682,-637.12,0.00021643,2]
[368186042,1751052667692,-151.0,0.00021643,2]
[368186043,1751052667701,-460.0,0.00021643,2]
[368186044,1751052667711,-151.0,0.00021643,2]
[368186045,1751052667720,-5918.62,0.00021643,2]
[368186046,1751052667730,-770.71,0.00021643,2]
[368186047,1751052667739,-460.0,0.00021643,2]
[368186048,1751052667749,-151.0,0.00021643,2]
[368186049,1751052667759,-151.0,0.00021643,2]
[368186050,1751052667768,-460.0,0.00021643,2]
[368186051,1751052667777,-2145.65,0.00021643,2]
[368186052,1751052667787,-1645.29,0.00021643,2]
[368186053,1751052667796,-2364.11,0.00021643,2]
[368186054,1751052667805,-460.0,0.00021643,2]
[368186055,1751052667815,-151.0,0.00021643,2]
[368186056,1751052667823,-460.0,0.00021643,2]
[368186057,1751052667833,-161.34658,0.00021643,2]
[368186058,1751052667842,-460.0,0.00021643,2]
[368186059,1751052667851,-161.34658,0.00021643,2]
[368186060,1751052667861,-594.37,0.00021643,2]
[368186061,1751052667871,-460.0,0.00021643,2]
[368186062,1751052667881,-924.4,0.00021643,2]
[368186063,1751052667891,-627.61,0.00021643,2]
[368186064,1751052667901,-2181.9,0.00021643,2]
[368186065,1751052667910,-460.0,0.00021643,2]
[368186066,1751052667920,-853.71,0.00021643,2]
[368186067,1751052667929,-151.0,0.00021643,2]
[368186068,1751052667940,-2297.35,0.00021643,2]
[368186069,1751052667951,-861.77,0.00021643,2]
[368186070,1751052667960,-151.0,0.00021643,2]
[368186071,1751052667969,-434.20102481,0.00021643,2]
[368186072,1751052667979,-598.58,0.00021643,2]
[368186073,1751052667991,-1365.66016092,0.00021643,2]
[368186074,1751052668183,-304.39983908,0.00021643,2]
[368186075,1751052668192,-460.0,0.00021643,2]
[368186076,1751052668201,-419.05928685,0.00021643,2]
[368186077,1751052668210,-460.0,0.00021643,2]
[368186078,1751052668219,-460.0,0.00021643,2]
[368186079,1751052668229,-460.0,0.00021643,2]
[368186080,1751052668238,-1454.24,0.00021643,2]
[368186081,1751052668247,-2486.78,0.00021643,2]
[368186082,1751052668256,-460.0,0.00021643,2]
[368186083,1751052668266,-170.90977,0.00021643,2]
[368186084,1751052668275,-584.46,0.00021643,2]
[368186085,1751052668284,-170.90977,0.00021643,2]
[368186086,1751052668294,-460.0,0.00021643,2]
[368186087,1751052668303,-460.0,0.00021643,2]
[368186088,1751052668314,-523.83,0.00021643,2]
[368186089,1751052668323,-723.03,0.00021643,2]
[368186090,1751052668333,-1169.97,0.00021643,2]
[368186091,1751052668343,-719.13,0.00021643,2]
[368186092,1751052668352,-1127.03,0.00021643,2]
[368186093,1751052668362,-735.82,0.00021643,2]
[368186094,1751052668371,-859.39,0.00021643,2]
[368186095,1751052668381,-617.53,0.00021643,2]
[368186096,1751052668390,-460.0,0.00021643,2]
[368186097,1751052668400,-460.0,0.00021643,2]
[368186098,1751052668410,-825.22,0.00021643,2]
[368186099,1751052668419,-460.0,0.00021643,2]
[368186100,1751052668428,-916.36,0.00021643,2]
[368186101,1751052668437,-2447.11,0.00021643,2]
[368186102,1751052668446,-460.0,0.00021643,2]
[368186103,1751052668456,-460.0,0.00021643,2]
[368186104,1751052668465,-2742.82,0.00021643,2]
[368186105,1751052668475,-4031.83,0.00021643,2]
[368186106,1751052668484,-460.0,0.00021643,2]
[368186107,1751052668494,-460.0,0.00021643,2]
[368186108,1751052668503,-460.0,0.00021643,2]
[368186109,1751052668513,-460.0,0.00021643,2]
[368186110,1751052668522,-460.0,0.00021643,2]
[368186111,1751052668531,-460.0,0.00021643,2]
[368186112,1751052668541,-768.54,0.00021643,2]
[368186113,1751052668551,-318.774376,0.00021643,2]
[368186114,1751052668560,-7682.97,0.00021643,2]
[368186115,1751052668569,-460.0,0.00021643,2]
[368186116,1751052668578,-907.91,0.00021643,2]
[368186117,1751052668588,-151.0,0.00021643,2]
[368186118,1751052668597,-219.91196086,0.00021643,2]
[368186119,1751052668606,-975.77,0.00021643,2]
[368186120,1751052668617,-532.67,0.00021643,2]
[368186121,1751052668626,-460.0,0.00021643,2]
[368186122,1751052668636,-7310.70981421,0.00021643,2]
[368186123,1751052668890,-594.0,0.00019178,2]
[368186124,1751052668900,-460.0,0.00019178,2]
[368186125,1751052668909,-236.0,0.00019178,2]
[368186126,1751052668921,-224.0,0.00019178,2]
[368186127,1751052668931,-174.076,0.00019178,2]
[368186128,1751052669111,-285.924,0.00019178,2]
[368186129,1751052669121,-460.0,0.00019178,2]
[368186130,1751052669130,-400.21602134,0.00019178,2]
[368186131,1751052669140,-594.0,0.00019452,2]
[368186132,1751052669150,-460.0,0.00019452,2]
[368186133,1751052669161,-460.0,0.00019452,2]
[368186134,1751052669170,-460.0,0.00019452,2]
[368186135,1751052669180,-594.0,0.00019726,2]
[368186136,1751052669189,-460.0,0.00019726,2]
[368186137,1751052669199,-460.0,0.00019726,2]
[368186138,1751052669209,-460.0,0.00019726,2]
[368186139,1751052669219,-594.0,0.0002,2]
[368186140,1751052669229,-460.0,0.0002,2]
[368186141,1751052669238,-460.0,0.0002,2]
[368186142,1751052669247,-594.0,0.00020273,2]
[368186143,1751052669256,-460.0,0.00020273,2]
[368186144,1751052669266,-460.0,0.00020547,2]
[368186145,1751052669275,-594.0,0.00020547,2]
[368186146,1751052669285,-460.0,0.00020547,2]
[368186147,1751052669294,-460.0,0.00020821,2]
[368186148,1751052669304,-594.0,0.00020821,2]
[368186149,1751052669313,-375.95557095,0.00020821,2]
[368186150,1751052669325,-84.04442905,0.00020821,2]
[368186151,1751052669335,-217.064843,0.00020821,2]
[368186152,1751052669344,-460.0,0.00021095,2]
[368186153,1751052669353,-340.81106877,0.00021095,2]
[368186154,1751052669782,-597.05946755,0.00019178,2]
[368186155,1751052669791,-460.0,0.00019178,2]
[368186156,1751052669801,-460.0,0.00019178,2]
[368186157,1751052669811,-283.66359152,0.00019178,2]
[368186158,1751052669823,-1148.8540211,0.000192,2]
[368186159,1751052669832,-460.0,0.00019452,2]
[368186160,1751052669842,-460.0,0.00019452,2]
[368186161,1751052669851,-460.0,0.00019726,2]
[368186162,1751052669860,-460.0,0.00019726,2]
[368186163,1751052669870,-460.0,0.0002,2]
[368186164,1751052669879,-460.0,0.0002,2]
[368186165,1751052669889,-255.52,0.00020273,2]
[368186166,1751052669898,-414.5,0.00020273,2]
[368186167,1751052669907,-217.064843,0.00020821,2]
[368186168,1751052669917,-253.18893123,0.00021095,2]
[368186169,1751052669927,-460.0,0.00021095,2]
[368186170,1751052669937,-460.0,0.00021369,2]
[368186171,1751052669951,-594.0,0.00021369,2]
[368186172,1751052669961,-460.0,0.00021369,2]
[368186173,1751052669970,-1065.83018579,0.00021643,2]
[368186174,1751052669980,-966.56,0.00021643,2]
[368186175,1751052669990,-1863.89,0.00021643,2]
[368186176,1751052670001,-465.00887608,0.00021643,2]
[368186179,1751052957599,177.86564522,0.00016438,3]
[368186180,1751053272941,185.0,0.00016438,3]
[368186181,1751053536125,-294.34329383,0.0001817,2]
[368186182,1751053548076,-5.65670617,0.0001817,2]
[368186183,1751053548096,-300.0,0.0001817,2]
[368186184,1751053548118,-326.1390378,0.0001817,2]
[368186185,1751053589613,160.0,0.00016438,3]
[368186186,1751053602724,353.93723734,0.00018071,2]
[368186187,1751053630091,-300.0,0.00018169,2]
[368186188,1751053630112,-206.80604134,0.0001817,2]
[368186189,1751053630133,-500.0,0.0001817,2]
[368186190,1751053630155,-500.0,0.0001817,2]
[368186191,1751053630176,-177.83127771,0.0001817,2]
[368186192,1751053632092,-322.16872229,0.0001817,2]
[368186193,1751053632115,-500.0,0.0001817,2]
[368186194,1751053632138,-430.96581997,0.0001817,2]
[368186195,1751053642113,-69.03418003,0.0001817,2]
[368186196,1751053642136,-403.7478944,0.0001817,2]
[368186201,1751053698672,501.835303,0.00013699,2]
[368186229,1751053832015,-180.0,0.00018168,2]
[368186232,1751053832025,-874.0,0.00018168,2]
[368186233,1751053832035,-300.0,0.00018168,2]
[368186235,1751053832045,-448.27765995,0.00018169,2]
[368186238,1751053832054,-510.66175618,0.00018169,2]
[368186240,1751053832063,-500.0,0.00018169,2]
[368186241,1751053832073,-500.0,0.00018169,2]
[368186244,1751053832082,-500.0,0.00018169,2]
[368186245,1751053832092,-500.0,0.00018169,2]
[368186247,1751053832101,-500.0,0.00018169,2]
[368186250,1751053832110,-500.0,0.00018169,2]
[368186252,1751053832120,-500.0,0.00018169,2]
[368186254,1751053832130,-500.0,0.00018169,2]
[368186256,1751053832139,-500.0,0.00018169,2]
[368186257,1751053832149,-500.0,0.00018169,2]
[368186259,1751053832158,-52.37820622,0.00018169,2]
[368186262,1751053832170,-447.62179378,0.00018169,2]
[368186264,1751053832179,-500.0,0.00018169,2]
[368186267,1751053832188,-356.6147482,0.00018169,2]
[368186270,1751053832197,-500.0,0.00018169,2]
[368186273,1751053832206,-500.0,0.00018169,2]
[368186275,1751053832215,-500.0,0.00018169,2]
[368186277,1751053832224,-500.0,0.00018169,2]
[368186279,1751053832233,-500.0,0.00018169,2]
[368186281,1751053832242,-500.0,0.00018169,2]
[368186282,1751053832251,-500.0,0.00018169,2]
[368186284,1751053832260,-500.0,0.00018169,2]
[368186286,1751053832270,-500.0,0.00018169,2]
[368186289,1751053832280,-500.0,0.00018169,2]
[368186291,1751053832291,-500.0,0.00018169,2]
[368186293,1751053832301,-500.0,0.00018169,2]
[368186295,1751053832310,-359.67829499,0.00018169,2]
[368186297,1751053832319,-500.0,0.00018169,2]
[368186298,1751053832329,-500.0,0.00018169,2]
[368186301,1751053832339,-500.0,0.00018169,2]
[368186302,1751053832348,-500.0,0.00018169,2]
[368186304,1751053832357,-500.0,0.00018169,2]
[368186306,1751053832367,-293.26507704,0.00018169,2]
[368186308,1751053832377,-500.0,0.00018169,2]
[368186310,1751053832387,-500.0,0.00018169,2]
[368186312,1751053832396,-500.0,0.00018169,2]
[368186314,1751053832406,-500.0,0.00018169,2]
[368186316,1751053832415,-500.0,0.00018169,2]
[368186318,1751053832424,-349.62286237,0.00018169,2]
[368186320,1751053832433,-500.0,0.00018169,2]
[368186322,1751053832442,-500.0,0.00018169,2]
[368186324,1751053832452,-500.0,0.00018169,2]
[368186326,1751053832461,-500.0,0.00018169,2]
[368186328,1751053832470,-500.0,0.00018169,2]
[368186330,1751053832479,-500.0,0.00018169,2]
[368186332,1751053832488,-500.0,0.00018169,2]
[368186334,1751053832498,-500.0,0.00018169,2]
[368186336,1751053832507,-500.0,0.00018169,2]
[368186338,1751053832516,-159.52601664,0.00018169,2]
[368186340,1751053832525,-500.0,0.00018169,2]
[368186342,1751053832535,-500.0,0.00018169,2]
[368186344,1751053832543,-500.0,0.00018169,2]
[368186346,1751053832553,-500.0,0.00018169,2]
[368186348,1751053832562,-500.0,0.00018169,2]
[368186349,1751053832571,-500.0,0.00018169,2]
[368186350,1751053832580,-500.0,0.00018169,2]
[368186351,1751053832589,-500.0,0.00018169,2]
[368186352,1751053832598,-500.0,0.00018169,2]
[368186353,1751053832608,-500.0,0.00018169,2]
[368186354,1751053832618,-500.0,0.00018169,2]
[368186355,1751053832627,-500.0,0.00018169,2]
[368186356,1751053832637,-500.0,0.00018169,2]
[368186357,1751053832646,-500.0,0.00018169,2]
[368186358,1751053832655,-500.0,0.00018169,2]
[368186359,1751053832665,-500.0,0.00018169,2]
[368186360,1751053832674,-500.0,0.00018169,2]
[368186361,1751053832683,-500.0,0.00018169,2]
[368186362,1751053832693,-500.0,0.00018169,2]
[368186363,1751053832702,-500.0,0.00018169,2]
[368186364,1751053832711,-500.0,0.00018169,2]
[368186365,1751053832721,-500.0,0.00018169,2]
[368186366,1751053832730,-500.0,0.00018169,2]
[368186367,1751053832740,-500.0,0.00018169,2]
[368186368,1751053832749,-500.0,0.00018169,2]
[368186369,1751053832759,-500.0,0.00018169,2]
[368186370,1751053832768,-500.0,0.00018169,2]
[368186371,1751053832777,-500.0,0.00018169,2]
[368186372,1751053832787,-500.0,0.00018169,2]
[368186374,1751053832798,-500.0,0.00018169,2]
[368186376,1751053832807,-500.0,0.00018169,2]
[368186378,1751053832816,-500.0,0.00018169,2]
[368186380,1751053832825,-500.0,0.00018169,2]
[368186382,1751053832834,-500.0,0.00018169,2]
[368186384,1751053832843,-500.0,0.00018169,2]
[368186386,1751053832853,-500.0,0.00018169,2]
[368186388,1751053832862,-500.0,0.00018169,2]
[368186390,1751053832871,-400.0,0.00018169,2]
[368186392,1751053832881,-500.0,0.00018169,2]
[368186394,1751053832890,-500.0,0.00018169,2]
[368186396,1751053832899,-500.0,0.00018169,2]
[368186398,1751053832908,-500.0,0.00018169,2]
[368186400,1751053832917,-500.0,0.00018169,2]
[368186402,1751053832926,-500.0,0.00018169,2]
[368186404,1751053832935,-500.0,0.00018169,2]
[368186405,1751053832944,-500.0,0.00018169,2]
[368186407,1751053832953,-10311.76120696,0.0001817,2]
[368186410,1751053832971,-855.4,0.0001817,2]
[368186412,1751053832982,-38832.83879304,0.0001817,2]
[368186414,1751053832991,-304.0,0.0001817,2]
[368186416,1751053833000,-500.0,0.00018172,2]
[368186418,1751053833010,-500.0,0.00018173,2]
[368186420,1751053833020,-500.0,0.00018173,2]
[368186422,1751053833030,-476.53104905,0.00018173,2]
[368186424,1751053833039,-500.0,0.00018173,2]
[368186426,1751053833049,-500.0,0.00018173,2]
[368186428,1751053833058,-24900.0,0.00018174,2]
[368186430,1751053833067,-285.354624,0.00018267,2]
[368186433,1751053833078,-285.96312607,0.000189,2]
[368186435,1751053833087,-2269.2270263,0.00019078,2]
[368186437,1751053833097,-160.0,0.00019158,2]
[368186439,1751053833106,-256.05,0.00019168,3]
[368186441,1751053833116,-460.0,0.00019178,2]
[368186443,1751053833126,-460.0,0.00019178,2]
[368186445,1751053833136,-460.0,0.00019178,2]
[368186446,1751053833145,-460.0,0.00019178,2]
[368186448,1751053833154,-460.0,0.00019178,2]
[368186450,1751053833163,-279.16606981,0.00019178,2]
[368186452,1751053833172,-460.0,0.00019178,2]
[368186454,1751053833181,-225.52620187,0.00019178,2]
[368186456,1751053833190,-460.0,0.00019178,2]
[368186458,1751053833199,-460.0,0.00019178,2]
[368186460,1751053833209,-331.67082645,0.00019178,2]
[368186462,1751053833218,-460.0,0.00019178,2]
[368186464,1751053833228,-420.0,0.00019178,2]
[368186466,1751053833237,-460.0,0.00019178,2]
[368186468,1751053833247,-460.0,0.00019178,2]
[368186470,1751053833256,-460.0,0.00019178,2]
[368186472,1751053833265,-243.45,0.00019178,2]
[368186474,1751053833275,-460.0,0.00019178,2]
[368186476,1751053833287,-469.26,0.00019178,2]
[368186478,1751053833296,-321.24358389,0.00019178,2]
[368186480,1751053833305,-460.0,0.00019178,2]
[368186482,1751053833314,-460.0,0.00019178,2]
[368186484,1751053833323,-460.0,0.00019178,2]
[368186486,1751053833334,-460.0,0.00019178,2]
[368186487,1751053833343,-545.1987383,0.00019178,2]
[368186490,1751053833353,-460.0,0.00019178,2]
[368186492,1751053833363,-460.0,0.00019178,2]
[368186493,1751053833373,-460.0,0.00019178,2]
[368186495,1751053833382,-460.0,0.00019178,2]
[368186497,1751053833392,-460.0,0.00019178,2]
[368186499,1751053833401,-460.0,0.00019178,2]
[368186501,1751053833411,-460.0,0.00019178,2]